fUST/lending_fUST_20251231
["ID","MTS","AMOUNT","RATE_DAILY","PERIOD"]
[400119557,1767135041421,-163.63597044,0.00013699,2]
[400119560,1767135041431,-253.93208219,0.00013699,2]
[400119562,1767135041444,-500.0,0.00013699,2]
[400119563,1767135041455,-267.37089605,0.00013699,2]
[400119565,1767135041464,-500.0,0.00013699,2]
[400119567,1767135041474,-500.0,0.00013699,2]
[400119569,1767135041484,-500.0,0.00013699,2]
[400119572,1767135041498,-500.0,0.00013699,2]
[400119573,1767135041509,-500.0,0.00013699,2]
[400119575,1767135041518,-500.0,0.00013699,2]
[400119577,1767135041527,-500.0,0.00013786,2]
[400119579,1767135041536,-1000.0,0.00013821,2]
[400119581,1767135041546,-1000.0,0.00013821,2]
[400119583,1767135041555,-1000.0,0.00013821,2]
[400119585,1767135041565,-1000.0,0.00013821,2]
[400119587,1767135041574,-1000.0,0.00013821,2]
[400119589,1767135041583,-1000.0,0.00013821,2]
[400119591,1767135041591,-676.8974901,0.00013821,2]
[400119593,1767135041602,-500.61848395,0.00013821,2]
[400119595,1767135041611,-1001.61542558,0.00013821,2]
[400119597,1767135041620,-1000.0,0.00013821,2]
[400119599,1767135041629,-1001.51940967,0.00013821,2]
[400119601,1767135041638,-519.80046235,0.00013821,2]
[400119603,1767135041647,-330.83728204,0.00013821,2]
[400119605,1767135041656,-1000.0,0.00013821,2]
[400119607,1767135041665,-1000.0,0.00013821,2]
[400119609,1767135041674,-1000.0,0.00013821,2]
[400119611,1767135041683,-1000.0,0.00013821,2]
[400119613,1767135041692,-880.82741627,0.00013821,2]
[400119615,1767135041702,-1000.0,0.00013821,2]
[400119617,1767135041711,-1000.0,0.00013821,2]
[400119619,1767135041720,-852.44139576,0.00013821,2]
[400119621,1767135041730,-1000.0,0.00013821,2]
[400119623,1767135041739,-1000.0,0.00013821,2]
[400119625,1767135041748,-1000.0,0.00013821,2]
[400119627,1767135041757,-500.51187945,0.00013821,2]
[400119629,1767135041766,-529.57538183,0.00013821,2]
[400119631,1767135041775,-1000.0,0.00013821,2]
[400119632,1767135041784,-1000.0,0.00013821,2]
[400119634,1767135041793,-1000.0,0.00013821,2]
[400119636,1767135041803,-500.65462418,0.00013821,2]
[400119638,1767135041812,-923.90584784,0.00013821,2]
[400119640,1767135041820,-1000.0,0.00013821,2]
[400119642,1767135041830,-1000.0,0.00013821,2]
[400119643,1767135041839,-1000.0,0.00013821,2]
[400119644,1767135041848,-1000.0,0.00013821,2]
[400119645,1767135041857,-1000.0,0.00013821,2]
[400119646,1767135041867,-1000.0,0.00013821,2]
[400119647,1767135041876,-1000.0,0.00013821,2]
[400119648,1767135041887,-1000.0,0.00013821,2]
[400119649,1767135041896,-1000.0,0.00013821,2]
[400119650,1767135041905,-1000.0,0.00013821,2]
[400119651,1767135041916,-493.85504608,0.00013821,2]
[400119652,1767135041930,-499.76525701,0.00013821,2]
[400119653,1767135041939,-459.70529653,0.00013821,2]
[400119654,1767135041949,-1000.0,0.00013821,2]
[400119655,1767135041958,-1000.0,0.00013821,2]
[400119656,1767135041968,-1000.0,0.00013821,2]
[400119657,1767135041977,-1000.0,0.00013821,2]
[400119658,1767135041986,-500.8149509,0.00013821,2]
[400119659,1767135041998,-1000.0,0.00013821,2]
[400119660,1767135042008,-1000.0,0.00013821,2]
[400119661,1767135042017,-205.15331255,0.00013821,2]
[400119662,1767135042027,-1000.0,0.00013821,2]
[400119663,1767135042038,-1000.0,0.00013821,2]
[400119664,1767135042047,-1000.0,0.00013821,2]
[400119665,1767135042057,-331.69981741,0.00013867,2]
[400119666,1767135042069,-500.0,0.00013886,2]
[400119667,1767135042079,-163.49309026,0.00013973,2]
[400119668,1767135042088,-500.0,0.0001416,2]
[400119669,1767135042097,-420.0,0.00014213,2]
[400119670,1767135042107,-956.83,0.00014214,2]
[400119671,1767135042117,-600.0,0.00014221,2]
[400119672,1767135042126,-425.23642638,0.00014225,2]
[400119673,1767135042136,-500.71209724,0.00014247,2]
[400119674,1767135042145,-500.23104155,0.00014247,2]
[400119675,1767135042154,-500.49105905,0.00014247,2]
[400119676,1767135042163,-424.97619978,0.00014247,2]
[400119677,1767135042172,-500.52505764,0.00014247,2]
[400119678,1767135042182,-1000.0,0.00014247,2]
[400119679,1767135042191,-1077.43394152,0.00014247,2]
[400119680,1767135042201,-1000.0,0.00014247,2]
[400119681,1767135042210,-1000.0,0.00014247,2]
[400119682,1767135042220,-1000.0,0.00014247,2]
[400119683,1767135042229,-908.24491784,0.00014247,2]
[400119684,1767135042238,-911.70387957,0.00014247,2]
[400119685,1767135042247,-1000.0,0.00014247,2]
[400119686,1767135042256,-609.01134723,0.00014247,2]
[400119687,1767135042265,-1000.0,0.00014247,2]
[400119688,1767135042275,-1000.0,0.00014247,2]
[400119689,1767135042284,-1000.0,0.00014247,2]
[400119690,1767135042293,-1125.29416392,0.00014247,2]
[400119691,1767135042303,-1000.0,0.00014247,2]
[400119692,1767135042312,-1000.0,0.00014247,2]
[400119693,1767135042322,-1000.0,0.00014247,2]
[400119694,1767135042331,-500.29842762,0.00014247,2]
[400119695,1767135042341,-1000.0,0.00014247,2]
[400119696,1767135042350,-1000.0,0.00014247,2]
[400119697,1767135042359,-1000.0,0.00014247,2]
[400119698,1767135042368,-1000.0,0.00014247,2]
[400119699,1767135042378,-500.75693434,0.00014247,2]
[400119700,1767135042387,-500.83485373,0.00014247,2]
[400119701,1767135042397,-500.64819695,0.00014247,2]
[400119702,1767135042406,-500.88904655,0.00014247,2]
[400119703,1767135042415,-500.6174752,0.00014247,2]
[400119704,1767135042424,-1000.67462727,0.00014247,2]
[400119705,1767135042433,-1000.0,0.00014247,2]
[400119706,1767135042444,-1000.6,0.00014247,2]
[400119707,1767135042453,-1000.0,0.00014247,2]
[400119708,1767135042463,-1000.0,0.00014247,2]
[400119709,1767135042472,-1000.0,0.00014247,2]
[400119710,1767135042482,-439.78725339,0.00014247,2]
[400119711,1767135042491,-1000.0,0.00014247,2]
[400119712,1767135042501,-1000.0,0.00014247,2]
[400119713,1767135042511,-1000.0,0.00014247,2]
[400119714,1767135042520,-1140.95305327,0.00014247,2]
[400119715,1767135042530,-1000.0,0.00014247,2]
[400119716,1767135042540,-542.67834367,0.00014247,2]
[400119717,1767135042551,-500.87185466,0.00014247,2]
[400119718,1767135042559,-501.17569243,0.00014247,2]
[400119719,1767135042569,-1000.0,0.00014247,2]
[400119720,1767135042578,-536.35203428,0.00014247,2]
[400119721,1767135042587,-1000.0,0.00014247,2]
[400119722,1767135042597,-1000.0,0.00014247,2]
[400119723,1767135042608,-1000.0,0.00014247,2]
[400119724,1767135042617,-1000.0,0.00014247,2]
[400119725,1767135042627,-1000.0,0.00014247,2]
[400119726,1767135042637,-841.76077155,0.00014247,2]
[400119727,1767135042646,-1000.0,0.00014247,2]
[400119728,1767135042655,-1000.0,0.00014247,2]
[400119729,1767135042665,-1000.0,0.00014247,2]
[400119730,1767135042674,-1000.0,0.00014247,2]
[400119731,1767135042683,-1000.0,0.00014247,2]
[400119732,1767135042692,-1000.0,0.00014247,2]
[400119733,1767135042702,-1000.0,0.00014247,2]
[400119734,1767135042711,-1000.0,0.00014247,2]
[400119735,1767135042720,-1000.0,0.00014247,2]
[400119736,1767135042730,-1680.0,0.00014256,2]
[400119737,1767135042739,-850.60008768,0.00014368,2]
[400119738,1767135042748,-1500.0,0.00014368,2]
[400119739,1767135042757,-304.17357408,0.00014368,2]
[400119740,1767135042768,-1500.0,0.00014368,2]
[400119741,1767135042787,-1148.56176986,0.00014368,2]
[400119742,1767135042873,-1500.0,0.00014368,2]
[400119743,1767135042882,-1500.0,0.00014368,2]
[400119744,1767135042892,-1182.79236515,0.00014368,2]
[400119745,1767135042902,-1500.0,0.00014368,2]
[400119746,1767135042912,-1500.0,0.00014368,2]
[400119747,1767135042921,-1500.0,0.00014368,2]
[400119748,1767135042930,-1500.0,0.00014368,2]
[400119749,1767135042940,-1500.0,0.00014368,2]
[400119750,1767135042949,-1159.38531226,0.00014368,2]
[400119751,1767135042958,-1500.0,0.00014368,2]
[400119752,1767135042968,-543.97913442,0.00014368,2]
[400119753,1767135042977,-1500.0,0.00014368,2]
[400119754,1767135042986,-1463.64176807,0.00014368,2]
[400119755,1767135042995,-501.17509357,0.00014368,2]
[400119756,1767135043004,-1500.0,0.00014368,2]
[400119757,1767135043013,-1500.0,0.00014368,2]
[400119758,1767135043023,-1500.0,0.00014368,2]
[400119759,1767135043032,-1500.0,0.00014368,2]
[400119760,1767135043042,-1500.0,0.00014368,2]
[400119761,1767135043052,-1500.0,0.00014368,2]
[400119762,1767135043061,-1500.0,0.00014368,2]
[400119763,1767135043071,-1500.0,0.00014368,2]
[400119764,1767135043080,-1500.0,0.00014368,2]
[400119765,1767135043090,-1500.0,0.00014368,2]
[400119766,1767135043099,-153.38433205,0.00014368,2]
[400119767,1767135043108,-1500.0,0.00014368,2]
[400119768,1767135043117,-1500.0,0.00014368,2]
[400119769,1767135043126,-185.90422745,0.00014368,2]
[400119770,1767135043135,-602.08725068,0.00014368,2]
[400119771,1767135043144,-1500.0,0.00014368,2]
[400119772,1767135043154,-848.74032619,0.00014368,2]
[400119773,1767135043164,-1500.0,0.00014368,2]
[400119774,1767135043174,-1500.0,0.00014368,2]
[400119775,1767135043183,-500.0,0.00014434,2]
[400119776,1767135043193,-2957.9696329,0.0001446,2]
[400119777,1767135043202,-720.0,0.00014654,2]
[400119778,1767135043211,-500.0,0.00014708,2]
[400119779,1767135043221,-900.0,0.00014768,2]
[400119780,1767135043231,-1500.0,0.00014795,2]
[400119781,1767135043240,-1001.88391057,0.00014795,2]
[400119782,1767135043250,-689.79380448,0.00014795,2]
[400119784,1767135043259,-1500.0,0.00014795,2]
[400119785,1767135043268,-1500.0,0.00014795,2]
[400119786,1767135043277,-1501.93029299,0.00014795,2]
[400119787,1767135043287,-1500.0,0.00014795,2]
[400119788,1767135043297,-1414.90356964,0.00014795,2]
[400119789,1767135043307,-1501.26232014,0.00014795,2]
[400119790,1767135043318,-501.01146008,0.00014795,2]
[400119791,1767135043327,-1500.0,0.00014795,2]
[400119792,1767135043336,-1502.56460974,0.00014795,2]
[400119793,1767135043346,-614.47125074,0.00014795,2]
[400119794,1767135043356,-1500.0,0.00014795,2]
[400119795,1767135043365,-1000.0,0.00014795,2]
[400119796,1767135043375,-501.12401545,0.00014795,2]
[400119797,1767135043385,-1501.96173008,0.00014795,2]
[400119798,1767135043394,-1500.0,0.00014795,2]
[400119799,1767135043404,-1500.0,0.00014795,2]
[400119800,1767135043414,-1500.0,0.00014795,2]
[400119801,1767135043424,-1500.0,0.00014795,2]
[400119802,1767135043434,-635.30832269,0.00014795,2]
[400119803,1767135043444,-1500.0,0.00014795,2]
[400119804,1767135043454,-1500.0,0.00014795,2]
[400119805,1767135043463,-1500.0,0.00014795,2]
[400119806,1767135043472,-1516.26229234,0.00014795,2]
[400119807,1767135043482,-1500.0,0.00014795,2]
[400119808,1767135043491,-1500.0,0.00014795,2]
[400119809,1767135043501,-1501.02108075,0.00014795,2]
[400119810,1767135043510,-1500.0,0.00014795,2]
[400119811,1767135043519,-1500.0,0.00014795,2]
[400119812,1767135043529,-1500.0,0.00014795,2]
[400119813,1767135043538,-1500.0,0.00014795,2]
[400119814,1767135043548,-1633.14052815,0.00014795,2]
[400119815,1767135043557,-1500.0,0.00014795,2]
[400119816,1767135043567,-1500.0,0.00014795,2]
[400119817,1767135043576,-1500.0,0.00014795,2]
[400119818,1767135043586,-1500.0,0.00014795,2]
[400119819,1767135043595,-1196.03,0.00014806,2]
[400119820,1767135043605,-278.3453573,0.00014831,2]
[400119821,1767135043615,-1908.85072464,0.00014909,2]
[400119822,1767135043624,-530.60034306,0.00014916,2]
[400119823,1767135043634,-153.38490748,0.00014916,2]
[400119824,1767135043643,-2000.0,0.00014916,2]
[400119825,1767135043652,-2000.0,0.00014916,2]
[400119826,1767135043661,-2000.0,0.00014916,2]
[400119827,1767135043671,-2000.0,0.00014916,2]
[400119828,1767135043680,-2000.0,0.00014916,2]
[400119829,1767135043690,-1306.02349709,0.00014916,2]
[400119830,1767135043699,-2000.0,0.00014916,2]
[400119831,1767135043708,-2000.0,0.00014916,2]
[400119832,1767135043718,-2000.0,0.00014916,2]
[400119833,1767135043728,-2000.0,0.00014916,2]
[400119834,1767135043738,-578.34432056,0.00014916,2]
[400119835,1767135043747,-153.33728789,0.00014916,2]
[400119836,1767135043757,-2000.0,0.00014916,2]
[400119837,1767135043766,-2000.0,0.00014916,2]
[400119838,1767135043775,-2000.0,0.00014916,2]
[400119839,1767135043785,-1705.87434732,0.00014916,2]
[400119840,1767135043794,-2000.0,0.00014916,2]
[400119841,1767135043804,-2000.0,0.00014916,2]
[400119842,1767135043814,-345.67383006,0.00014916,2]
[400119843,1767135043824,-2000.0,0.00014916,2]
[400119845,1767135043833,-2000.0,0.00014916,2]
[400119847,1767135043844,-923.25808836,0.00014916,2]
[400119849,1767135043853,-2000.0,0.00014916,2]
[400119851,1767135043863,-2000.0,0.00014916,2]
[400119853,1767135043873,-286.46296752,0.00014982,2]
[400119855,1767135043882,-100000.0,0.00015028,2]
[400119856,1767135043892,-1200.0,0.00015316,2]
[400119857,1767135043902,-664.39071824,0.00015342,2]
[400119858,1767135043911,-1657.0996811,0.00015342,2]
[400119859,1767135043921,-287.73937982,0.00015342,2]
[400119860,1767135043931,-2000.0,0.00015342,2]
[400119861,1767135043940,-502.44343875,0.00015342,2]
[400119862,1767135043949,-1002.36383556,0.00015342,2]
[400119863,1767135043959,-601.9114542,0.00015342,2]
[400119864,1767135043968,-705.08957727,0.00015342,2]
[400119865,1767135043978,-790.36524538,0.00015342,2]
[400119866,1767135043987,-1296.56856635,0.00015342,2]
[400119867,1767135044001,-1692.72226134,0.00015342,2]
[400119868,1767135044010,-500.93999528,0.00015342,2]
[400119869,1767135044020,-502.96369924,0.00015342,2]
[400119870,1767135044029,-2000.0,0.00015342,2]
[400119871,1767135044041,-500.74703084,0.00015342,2]
[400119872,1767135044051,-2000.76422099,0.00015342,2]
[400119873,1767135044060,-1502.03362733,0.00015342,2]
[400119874,1767135044071,-1501.43570007,0.00015342,2]
[400119875,1767135044081,-2128.34758048,0.00015342,2]
[400119876,1767135044091,-2000.79867344,0.00015342,2]
[400119877,1767135044100,-501.17963046,0.00015342,2]
[400119878,1767135044110,-501.28240001,0.00015342,2]
[400119879,1767135044119,-2000.0,0.00015342,2]
[400119880,1767135044129,-1435.24,0.00015399,2]
[400119881,1767135044138,-318.87701711,0.00015464,2]
[400119882,1767135044147,-2500.0,0.00015464,2]
[400119883,1767135044157,-451.0928214,0.00015464,2]
[400119884,1767135044166,-2500.0,0.00015464,2]
[400119885,1767135044175,-2500.0,0.00015464,2]
[400119886,1767135044184,-2354.66599035,0.00015464,2]
[400119887,1767135044193,-2500.0,0.00015464,2]
[400119888,1767135044203,-2500.0,0.00015464,2]
[400119889,1767135044212,-2500.0,0.00015464,2]
[400119890,1767135044221,-500.81406623,0.00015464,2]
[400119891,1767135044231,-268.17522063,0.00015464,2]
[400119892,1767135044240,-2500.0,0.00015464,2]
[400119893,1767135044249,-2500.0,0.00015464,2]
[400119894,1767135044262,-766.73162538,0.00015464,2]
[400119895,1767135044271,-2500.0,0.00015464,2]
[400119896,1767135044281,-2500.0,0.00015464,2]
[400119897,1767135044291,-2500.0,0.00015464,2]
[400119898,1767135044301,-2500.0,0.00015464,2]
[400119899,1767135044311,-587.0,0.00015588,2]
[400119900,1767135044321,-2351.0,0.00015681,2]
[400119901,1767135044330,-898.4228942,0.00015864,2]
[400119902,1767135044340,-802.96487012,0.0001589,2]
[400119903,1767135044350,-1511.97065526,0.0001589,2]
[400119904,1767135044360,-2500.0,0.0001589,2]
[400119905,1767135044369,-500.0,0.00015972,2]
[400119906,1767135044379,-1674.44,0.00015991,2]
[400119907,1767135044388,-2575.53869932,0.00016012,2]
[400119908,1767135044397,-3000.0,0.00016012,2]
[400119909,1767135044406,-3000.0,0.00016012,2]
[400119910,1767135044415,-3000.0,0.00016012,2]
[400119911,1767135044424,-2505.03427004,0.00016012,2]
[400119912,1767135044435,-3000.0,0.00016012,2]
[400119913,1767135044444,-3000.0,0.00016012,2]
[400119914,1767135044453,-3000.0,0.00016012,2]
[400119915,1767135044463,-192.65496128,0.00016012,2]
[400119916,1767135044472,-3000.0,0.00016012,2]
[400119917,1767135044483,-3000.0,0.00016012,2]
[400119918,1767135044493,-3000.0,0.00016012,2]
[400119919,1767135044575,-864.0,0.0001612,2]
[400119920,1767135044585,-7669.70788871,0.00016399,2]
[400119921,1767135044595,-500.0,0.00016438,2]
[400119922,1767135044604,-500.0,0.00016438,2]
[400119923,1767135044614,-500.0,0.00016438,2]
[400119924,1767135044624,-500.0,0.00016438,2]
[400119925,1767135044634,-500.0,0.00016438,2]
[400119926,1767135044643,-500.0,0.00016438,2]
[400119927,1767135044652,-500.0,0.00016438,2]
[400119928,1767135044662,-500.0,0.00016438,2]
[400119929,1767135044671,-635.37358436,0.00016438,2]
[400119930,1767135044680,-500.0,0.00016438,2]
[400119931,1767135044690,-500.0,0.00016438,2]
[400119932,1767135044699,-500.0,0.00016438,2]
[400119933,1767135044709,-500.0,0.00016438,2]
[400119934,1767135044719,-3000.0,0.00016438,2]
[400119935,1767135044728,-200.0,0.00016473,2]
[400119936,1767135044738,-3500.0,0.0001656,2]
[400119937,1767135044747,-338.65201998,0.0001656,2]
[400119938,1767135044757,-2018.30844147,0.0001656,2]
[400119939,1767135044767,-572.1911069,0.0001656,2]
[400119940,1767135044776,-449.77336015,0.0001656,2]
[400119941,1767135044786,-2567.25525094,0.0001656,2]
[400119942,1767135044796,-3500.0,0.0001656,2]
[400119943,1767135044806,-3500.0,0.0001656,2]
[400119944,1767135044816,-3500.0,0.0001656,2]
[400119945,1767135044827,-1913.65,0.00016583,2]
[400119946,1767135044837,-500.0,0.00016813,2]
[400119947,1767135044847,-320.80481858,0.00016831,2]
[400119948,1767135044856,-1908.85072464,0.00016965,2]
[400119949,1767135044866,-3500.0,0.00016986,2]
[400119950,1767135044875,-6000.0,0.00017,2]
[400119951,1767135044885,-250.0,0.00017045,2]
[400119952,1767135044895,-823.0,0.00017095,2]
[400119953,1767135044904,-711.20382489,0.00017108,2]
[400119954,1767135044914,-4000.0,0.00017108,2]
[400119956,1767135044923,-1007.11670617,0.00017108,2]
[400119958,1767135044932,-4000.0,0.00017108,2]
[400119960,1767135044942,-2152.86,0.00017175,2]
[400119962,1767135044951,-3292.0,0.0001725,2]
[400119963,1767135044960,-4000.0,0.00017534,2]
[400119965,1767135044970,-2520.819804,0.00017656,2]
[400119966,1767135044979,-1001.83600632,0.00017656,2]
[400119967,1767135044989,-500.0,0.00017698,2]
[400119968,1767135044998,-1000.0,0.00017732,2]
[400119969,1767135045008,-2392.06,0.00017768,2]
[400119970,1767135045021,-47234.64240088,0.000178,3]
[400119971,1767135045031,-278.55403227,0.00017842,2]
[400119972,1767135045040,-2701.00680866,0.00018082,2]
[400119973,1767135045049,-4500.0,0.000185,2]
[400119974,1767135045058,-500.0,0.00018629,2]
[400119975,1767135045067,-500.0,0.00018629,2]
[400119976,1767135045077,-1152.0,0.00018749,2]
[400119977,1767135045086,-363.26427987,0.00018831,2]
[400119978,1767135045096,-302.90913937,0.000189,2]
[400119979,1767135045105,-302.90913937,0.000189,2]
[400119980,1767135045115,-4609.0,0.00018974,2]
[400119981,1767135045124,-1908.85072464,0.00019022,2]
[400119982,1767135045133,-302.90913937,0.00019089,2]
[400119983,1767135045142,-302.90913937,0.00019089,2]
[400119984,1767135045151,-500.0,0.00019178,2]
[400119985,1767135045161,-500.0,0.00019178,2]
[400119986,1767135045170,-500.0,0.00019178,2]
[400119987,1767135045180,-500.0,0.00019178,2]
[400119988,1767135045189,-500.0,0.00019178,2]
[400119989,1767135045198,-500.0,0.00019178,2]
[400119990,1767135045208,-500.0,0.00019178,2]
[400119991,1767135045217,-500.0,0.00019178,2]
[400119992,1767135045227,-500.0,0.00019178,2]
[400119993,1767135045236,-500.0,0.00019178,2]
[400119994,1767135045246,-500.0,0.00019178,2]
[400119995,1767135045256,-500.0,0.00019178,2]
[400119996,1767135045265,-500.0,0.00019178,2]
[400119997,1767135045275,-500.0,0.00019178,2]
[400119998,1767135045284,-500.0,0.00019178,2]
[400119999,1767135045293,-500.0,0.00019178,2]
[400120000,1767135045303,-500.0,0.00019178,2]
[400120001,1767135045312,-500.0,0.00019178,2]
[400120002,1767135045322,-500.0,0.00019178,2]
[400120003,1767135045332,-500.0,0.00019178,2]
[400120004,1767135045341,-500.0,0.00019178,2]
[400120005,1767135045351,-500.0,0.00019178,2]
[400120006,1767135045360,-500.0,0.00019178,2]
[400120007,1767135045369,-369.95825721,0.00019178,2]
[400120008,1767135045379,-500.0,0.00019178,2]
[400120009,1767135045388,-500.0,0.00019178,2]
[400120010,1767135045398,-500.0,0.00019178,2]
[400120011,1767135045409,-500.0,0.00019178,2]
[400120012,1767135045419,-500.0,0.00019178,2]
[400120013,1767135045428,-500.0,0.00019178,2]
[400120014,1767135045438,-500.0,0.00019178,2]
[400120015,1767135045448,-500.0,0.00019178,2]
[400120016,1767135045457,-500.0,0.00019178,2]
[400120017,1767135045467,-500.0,0.00019178,2]
[400120018,1767135045477,-500.0,0.00019178,2]
[400120019,1767135045486,-500.0,0.00019178,2]
[400120020,1767135045497,-500.0,0.00019178,2]
[400120021,1767135045507,-500.0,0.00019178,2]
[400120022,1767135045516,-500.0,0.00019178,2]
[400120023,1767135045526,-500.0,0.00019178,2]
[400120024,1767135045536,-500.0,0.00019178,2]
[400120025,1767135045545,-500.0,0.00019178,2]
[400120026,1767135045555,-500.0,0.00019178,2]
[400120027,1767135045565,-500.0,0.00019178,2]
[400120028,1767135045575,-500.0,0.00019178,2]
[400120029,1767135045585,-500.0,0.00019178,2]
[400120030,1767135045595,-500.0,0.00019178,2]
[400120031,1767135045604,-500.0,0.00019178,2]
[400120032,1767135045614,-500.0,0.00019178,2]
[400120033,1767135045624,-500.0,0.00019178,2]
[400120034,1767135045634,-500.0,0.00019178,2]
[400120035,1767135045644,-500.0,0.00019178,2]
[400120036,1767135045654,-500.0,0.00019178,2]
[400120037,1767135045663,-500.0,0.00019178,2]
[400120038,1767135045673,-500.0,0.00019178,2]
[400120039,1767135045682,-500.0,0.00019178,2]
[400120040,1767135045692,-500.0,0.00019178,2]
[400120041,1767135045702,-500.0,0.00019178,2]
[400120042,1767135045711,-500.0,0.00019178,2]
[400120043,1767135045721,-500.0,0.00019178,2]
[400120044,1767135045730,-500.0,0.00019178,2]
[400120045,1767135045739,-500.0,0.00019178,2]
[400120046,1767135045749,-500.0,0.00019178,2]
[400120047,1767135045758,-500.0,0.00019178,2]
[400120048,1767135045768,-500.0,0.00019178,2]
[400120049,1767135045777,-500.0,0.00019178,2]
[400120050,1767135045786,-500.0,0.00019178,2]
[400120051,1767135045796,-500.0,0.00019178,2]
[400120052,1767135045805,-500.0,0.00019178,2]
[400120053,1767135045815,-500.0,0.00019178,2]
[400120055,1767135045824,-500.0,0.00019178,2]
[400120056,1767135045833,-500.0,0.00019178,2]
[400120057,1767135045842,-500.0,0.00019178,2]
[400120058,1767135045852,-150.0,0.00019178,2]
[400120059,1767135045861,-166.34,0.000192,2]
[400120060,1767135045870,-159.47,0.000192,2]
[400120062,1767135045880,-1552.86,0.000192,2]
[400120063,1767135045889,-165.69,0.000192,2]
[400120064,1767135045898,-8981.25,0.000192,2]
[400120065,1767135045907,-302.90913937,0.00019278,2]
[400120067,1767135045917,-302.90913937,0.00019278,2]
[400120068,1767135045929,-300.0,0.00019315,2]
[400120069,1767135045938,-450.0,0.00019452,2]
[400120070,1767135045948,-302.90913937,0.00019467,2]
[400120071,1767135045956,-302.90913937,0.00019467,2]
[400120072,1767135045966,-1000.0,0.00019505,2]
[400120073,1767135045975,-244.0,0.00019505,2]
[400120074,1767135045983,-600.0,0.00019589,2]
[400120075,1767135045993,-500.0,0.0001961,2]
[400120076,1767135046002,-500.0,0.0001961,2]
[400120077,1767135046013,-302.90913937,0.00019656,2]
[400120078,1767135046026,-302.90913937,0.00019656,2]
[400120079,1767135046040,-151.0,0.00019726,2]
[400120080,1767135046050,-151.0,0.00019726,2]
[400120081,1767135046061,-151.0,0.00019726,2]
[400120082,1767135046070,-556.1484877,0.00019726,2]
[400120087,1767135046150,-454.36370906,0.00019845,4]
[400120088,1767135046160,-454.36370906,0.00019845,4]
[400120089,1767135046169,-7669.70788871,0.00019935,2]
[400120090,1767135046182,-179.30196423,0.0002,2]
[400120091,1767135046191,-210.00651371,0.0002,2]
[400120092,1767135046200,-454.36370906,0.00020034,4]
[400120093,1767135046210,-454.36370906,0.00020034,4]
[400120094,1767135046219,-454.36370906,0.00020223,4]
[400120095,1767135046229,-454.36370906,0.00020223,4]
[400120096,1767135046238,-948.223993,0.00020308,2]
[400120097,1767135046247,-948.223993,0.00020308,2]
[400120098,1767135046257,-948.223993,0.00020308,2]
[400120099,1767135046266,-948.223993,0.00020308,2]
[400120100,1767135046276,-2000.0,0.0002031,7]
[400120101,1767135046285,-454.36370906,0.00020412,4]
[400120102,1767135046294,-454.36370906,0.00020412,4]
[400120103,1767135046304,-1802.00674928,0.000205,2]
[400120104,1767135046314,-1000.0,0.000205,2]
[400120105,1767135046323,-1613.0,0.00020562,2]
[400120106,1767135046332,-8981.25,0.000206,2]
[400120107,1767135046342,-454.36370901,0.00020601,4]
[400120108,1767135046351,-454.36370906,0.00020601,4]
[400120109,1767135046360,-500.0,0.00020642,2]
[400120110,1767135046369,-500.0,0.00020642,2]
[400120111,1767135046379,-1552.86,0.000208,2]
[400120112,1767135046389,-405.72374115,0.00020831,2]
[400120113,1767135046398,-6453.0,0.00020872,2]
[400120114,1767135046409,-165.69,0.000211,2]
[400120115,1767135046418,-1000.0,0.00021455,10]
[400120116,1767135046427,-492.0,0.00021455,10]
[400120117,1767135046436,-5000.0,0.00021512,2]